fUST/lending_fUST_20250806
["ID","MTS","AMOUNT","RATE_DAILY","PERIOD"]
[377459925,1754416282962,-152.0,0.00030392,7]
[377459926,1754416282971,-1758.0,0.00030392,7]
[377459927,1754416282980,-1758.0,0.00030392,7]
[377459928,1754416282989,-152.0,0.00030392,7]
[377459929,1754416282999,-1758.0,0.00030392,7]
[377459930,1754416283009,-152.0,0.00030392,7]
[377459931,1754416283018,-152.0,0.00030392,7]
[377459932,1754416283027,-1758.0,0.00030392,7]
[377459933,1754416283036,-1758.0,0.00030392,7]
[377459934,1754416283046,-1758.0,0.00030392,7]
[377459935,1754416283055,-1758.0,0.00030392,7]
[377459936,1754416283064,-152.0,0.00030392,7]
[377459937,1754416283073,-1758.0,0.00030392,7]
[377459938,1754416283083,-152.0,0.00030392,7]
[377459939,1754416283093,-1758.0,0.00030392,7]
[377459940,1754416283102,-161.7998668,0.00030392,7]
[377459941,1754416283112,-1758.0,0.00030392,7]
[377459942,1754416283121,-1758.0,0.00030392,7]
[377459943,1754416283131,-1758.0,0.00030392,7]
[377459944,1754416283140,-1758.0,0.00030392,7]
[377459945,1754416283151,-1758.0,0.00030392,7]
[377459946,1754416283161,-1758.0,0.00030392,7]
[377459947,1754416283171,-1758.0,0.00030392,7]
[377459948,1754416283180,-698.61649863,0.00030392,7]
[377459949,1754416283191,-325.0,0.00030392,7]
[377459950,1754416283200,-325.0,0.00030392,7]
[377459951,1754416283209,-325.0,0.00030392,7]
[377459952,1754416283218,-325.0,0.00030392,7]
[377459953,1754416283228,-325.0,0.00030392,7]
[377459954,1754416283237,-325.0,0.00030392,7]
[377459955,1754416283247,-325.0,0.00030392,7]
[377459956,1754416283256,-325.0,0.00030392,7]
[377459957,1754416283266,-325.0,0.00030392,7]
[377459958,1754416283275,-325.0,0.00030392,7]
[377459959,1754416283284,-325.0,0.00030392,7]
[377459960,1754416283293,-325.0,0.00030392,7]
[377459961,1754416283302,-325.0,0.00030392,7]
[377459962,1754416283401,-325.0,0.00030392,7]
[377459963,1754416283411,-325.0,0.00030392,7]
[377459964,1754416283421,-153.24,0.00030396,15]
[377459965,1754416283431,-200.0,0.00030399,10]
[377459966,1754416283441,-8511.6571442,0.000304,2]
[377459967,1754416283450,-794144.54,0.000304,4]
[377459968,1754416283460,-282432.47,0.000304,4]
[377459969,1754416283470,-434585.95,0.000304,4]
[377459970,1754416283479,-151.0,0.000304,7]
[377459971,1754416283488,-151.0,0.000304,7]
[377459972,1754416283498,-151.0,0.000304,7]
[377459973,1754416283507,-151.0,0.000304,7]
[377459974,1754416283517,-151.0,0.000304,7]
[377459975,1754416283526,-151.0,0.000304,7]
[377459976,1754416283535,-153.628359,0.000304,7]
[377459977,1754416283545,-151.0,0.000304,7]
[377459978,1754416283554,-151.0,0.000304,7]
[377459979,1754416283563,-193.643404,0.000304,7]
[377459980,1754416283572,-193.643404,0.000304,7]
[377459981,1754416283582,-151.0,0.000304,7]
[377459982,1754416283592,-151.0,0.000304,7]
[377459983,1754416283601,-151.0,0.000304,7]
[377459984,1754416283611,-151.0,0.000304,7]
[377459985,1754416283620,-151.0,0.000304,7]
[377459986,1754416283630,-151.0,0.000304,7]
[377459987,1754416283639,-151.0,0.000304,7]
[377459988,1754416283649,-151.0,0.000304,7]
[377459989,1754416283658,-151.0,0.000304,7]
[377459990,1754416283668,-151.0,0.000304,7]
[377459991,1754416283677,-219.174412,0.000304,7]
[377459992,1754416283687,-151.0,0.000304,7]
[377459993,1754416283696,-151.0,0.000304,7]
[377459994,1754416283706,-151.0,0.000304,7]
[377459995,1754416283716,-151.0,0.000304,7]
[377459996,1754416283725,-151.0,0.000304,7]
[377459997,1754416283735,-151.0,0.000304,7]
[377459998,1754416283745,-151.0,0.000304,7]
[377459999,1754416283755,-151.0,0.000304,7]
[377460000,1754416283764,-151.932771,0.000304,7]
[377460001,1754416283773,-151.0,0.000304,7]
[377460002,1754416283782,-151.0,0.000304,7]
[377460003,1754416283792,-151.0,0.000304,7]
[377460004,1754416283801,-151.0,0.000304,7]
[377460005,1754416283810,-151.0,0.000304,7]
[377460006,1754416283819,-151.0,0.000304,7]
[377460007,1754416283829,-151.0,0.000304,7]
[377460008,1754416283838,-151.0,0.000304,7]
[377460009,1754416283848,-151.0,0.000304,7]
[377460010,1754416283858,-151.0,0.000304,7]
[377460011,1754416283867,-151.0,0.000304,7]
[377460012,1754416283876,-151.0,0.000304,7]
[377460013,1754416283885,-151.0,0.000304,7]
[377460014,1754416283895,-151.0,0.000304,7]
[377460015,1754416283904,-151.0,0.000304,7]
[377460016,1754416283914,-151.0,0.000304,7]
[377460017,1754416283923,-151.0,0.000304,7]
[377460018,1754416283932,-151.0,0.000304,7]
[377460019,1754416283941,-151.0,0.000304,7]
[377460020,1754416283950,-151.0,0.000304,7]
[377460021,1754416283959,-151.0,0.000304,7]
[377460022,1754416283968,-151.0,0.000304,7]
[377460023,1754416283977,-151.0,0.000304,7]
[377460024,1754416283987,-151.0,0.000304,7]
[377460025,1754416283996,-222.31398,0.000304,7]
[377460026,1754416284005,-222.31398,0.000304,7]
[377460027,1754416284014,-222.31398,0.000304,7]
[377460028,1754416284026,-222.31398,0.000304,7]
[377460029,1754416284037,-151.0,0.000304,7]
[377460030,1754416284046,-151.0,0.000304,7]
[377460031,1754416284057,-151.0,0.000304,7]
[377460032,1754416284066,-407.26373,0.000304,7]
[377460033,1754416284075,-407.26373,0.000304,7]
[377460034,1754416284084,-407.26373,0.000304,7]
[377460035,1754416284094,-407.26373,0.000304,7]
[377460036,1754416284104,-151.0,0.000304,7]
[377460037,1754416284113,-151.0,0.000304,7]
[377460038,1754416284122,-151.0,0.000304,7]
[377460039,1754416284131,-151.0,0.000304,7]
[377460040,1754416284140,-151.0,0.000304,7]
[377460041,1754416284158,-171.958005,0.000304,7]
[377460042,1754416284177,-151.0,0.000304,7]
[377460043,1754416284195,-151.0,0.000304,7]
[377460044,1754416284214,-151.0,0.000304,7]
[377460045,1754416284236,-151.0,0.000304,7]
[377460046,1754416284253,-151.0,0.000304,7]
[377460047,1754416284272,-151.0,0.000304,7]
[377460048,1754416284288,-257532.59,0.000304,4]
[377460049,1754416284305,-151.0,0.000304,7]
[377460050,1754416284324,-151.0,0.000304,7]
[377460051,1754416284344,-181.88151,0.000304,7]
[377460052,1754416284361,-181.88151,0.000304,7]
[377460053,1754416284380,-181.88151,0.000304,7]
[377460054,1754416284397,-181.88151,0.000304,7]
[377460055,1754416284413,-175.0,0.000304,7]
[377460056,1754416284427,-175.0,0.000304,7]
[377460057,1754416284442,-175.0,0.000304,7]
[377460058,1754416284457,-175.0,0.000304,7]
[377460059,1754416284471,-249.450475,0.000304,7]
[377460060,1754416284485,-249.450475,0.000304,7]
[377460061,1754416284500,-249.450475,0.000304,7]
[377460062,1754416284514,-249.450475,0.000304,7]
[377460063,1754416284530,-644.0,0.000304,2]
[377460064,1754416284544,-1712.627473,0.000304,7]
[377460065,1754416284558,-1712.627473,0.000304,7]
[377460066,1754416284574,-1712.627473,0.000304,7]
[377460067,1754416284588,-1712.627473,0.000304,7]
[377460068,1754416284602,-857.66,0.0003041,2]
[377460069,1754416284616,-663.23,0.0003041,2]
[377460070,1754416284629,-460.0,0.0003041,2]
[377460071,1754416284643,-658.86,0.0003041,2]
[377460072,1754416284657,-6772.75,0.0003041,2]
[377460073,1754416284671,-1541.2,0.0003041,2]
[377460074,1754416284684,-812.68,0.0003041,2]
[377460075,1754416284698,-740.38,0.0003041,2]
[377460076,1754416284711,-1550.45,0.0003041,2]
[377460077,1754416284724,-532.66,0.0003041,2]
[377460078,1754416284737,-460.0,0.0003041,2]
[377460079,1754416284751,-1978.84,0.0003041,2]
[377460080,1754416284764,-1378.33,0.0003041,2]
[377460081,1754416284778,-376.4,0.0003041,2]
[377460082,1754416284792,-470.51030428,0.0003041,2]
[377460083,1754416284806,-460.0,0.0003041,2]
[377460084,1754416284820,-460.0,0.0003041,2]
[377460085,1754416284833,-613.34,0.0003041,2]
[377460086,1754416284847,-460.0,0.0003041,2]
[377460087,1754416284862,-460.0,0.0003041,2]
[377460088,1754416284876,-523.15155514,0.0003041,2]
[377460089,1754416284890,-460.0,0.0003041,2]
[377460090,1754416284905,-460.0,0.0003041,2]
[377460091,1754416284918,-460.0,0.0003041,2]
[377460092,1754416284933,-460.0,0.0003041,2]
[377460093,1754416284946,-460.0,0.0003041,2]
[377460094,1754416284960,-475.93140637,0.0003041,2]
[377460095,1754416284974,-460.0,0.0003041,2]
[377460096,1754416284988,-460.0,0.0003041,2]
[377460097,1754416285001,-1321.58,0.0003041,2]
[377460098,1754416285015,-460.0,0.0003041,2]
[377460099,1754416285029,-460.0,0.0003041,2]
[377460100,1754416285045,-1103.62,0.0003041,2]
[377460101,1754416285059,-460.0,0.0003041,2]
[377460102,1754416285072,-7164.38,0.0003041,2]
[377460103,1754416285085,-460.99,0.0003041,2]
[377460104,1754416285099,-460.0,0.0003041,2]
[377460105,1754416285113,-460.0,0.0003041,2]
[377460106,1754416285127,-460.0,0.0003041,2]
[377460107,1754416285140,-91405.03,0.0003041,2]
[377460108,1754416285154,-460.0,0.0003041,2]
[377460109,1754416285168,-1342.06,0.0003041,2]
[377460110,1754416285182,-460.0,0.0003041,2]
[377460111,1754416285197,-502.21,0.0003041,2]
[377460112,1754416285211,-500.0,0.0003041,2]
[377460113,1754416285225,-1250.59,0.0003041,2]
[377460114,1754416285240,-230.77650921,0.0003041,2]
[377460115,1754416285253,-1881.28,0.0003041,2]
[377460116,1754416285267,-824.53,0.0003041,2]
[377460117,1754416285282,-1138.15,0.0003041,2]
[377460118,1754416285296,-460.0,0.0003041,2]
[377460119,1754416285465,-3340.06,0.0003041,2]
[377460120,1754416285483,-460.0,0.0003041,2]
[377460121,1754416285493,-460.0,0.0003041,2]
[377460122,1754416285504,-460.0,0.0003041,2]
[377460123,1754416285513,-494.61,0.0003041,2]
[377460124,1754416285523,-460.0,0.0003041,2]
[377460125,1754416285532,-567.26,0.0003041,2]
[377460126,1754416285542,-1437.23,0.0003041,2]
[377460127,1754416285551,-2164.48,0.0003041,2]
[377460128,1754416285562,-1086.69,0.0003041,2]
[377460129,1754416285572,-1308.5,0.0003041,2]
[377460130,1754416285582,-460.0,0.0003041,2]
[377460131,1754416285592,-533.28812012,0.0003041,2]
[377460132,1754416285604,-460.0,0.0003041,2]
[377460133,1754416285613,-1242.29,0.0003041,2]
[377460134,1754416285623,-460.0,0.0003041,2]
[377460135,1754416285632,-460.0,0.0003041,2]
[377460136,1754416285642,-460.0,0.0003041,2]
[377460137,1754416285651,-738.23,0.0003041,2]
[377460138,1754416285660,-460.0,0.0003041,2]
[377460139,1754416285669,-460.0,0.0003041,2]
[377460140,1754416285679,-460.0,0.0003041,2]
[377460141,1754416285688,-1709.46,0.0003041,2]
[377460142,1754416285698,-6104.81,0.0003041,2]
[377460143,1754416285707,-1758.45,0.0003041,2]
[377460144,1754416285719,-460.0,0.0003041,2]
[377460145,1754416285729,-902.91,0.0003041,2]
[377460146,1754416285738,-533.32931653,0.0003041,2]
[377460147,1754416285747,-710.17,0.0003041,2]
[377460148,1754416285757,-1606.27,0.0003041,2]
[377460149,1754416285766,-819.41,0.0003041,2]
[377460150,1754416285776,-1844.87,0.0003041,2]
[377460151,1754416285785,-460.0,0.0003041,2]
[377460152,1754416285795,-460.0,0.0003041,2]
[377460153,1754416285805,-881.55,0.0003041,2]
[377460154,1754416285814,-558.16,0.0003041,2]
[377460155,1754416285824,-460.0,0.0003041,2]
[377460156,1754416285833,-518.54,0.0003041,2]
[377460157,1754416285843,-225.23990959,0.0003041,2]
[377460158,1754416285853,-1561.24,0.0003041,2]
[377460159,1754416285863,-460.0,0.0003041,2]
[377460160,1754416285872,-3008.19,0.0003041,2]
[377460161,1754416285881,-460.0,0.0003041,2]
[377460162,1754416285891,-460.0,0.0003041,2]
[377460163,1754416285901,-460.0,0.0003041,2]
[377460164,1754416285911,-460.0,0.0003041,2]
[377460165,1754416285920,-844.75,0.0003041,2]
[377460166,1754416285930,-1209.84,0.0003041,2]
[377460167,1754416285939,-1526.12,0.0003041,2]
[377460168,1754416285949,-460.0,0.0003041,2]
[377460169,1754416285958,-734.51,0.0003041,2]
[377460170,1754416285967,-674.37,0.0003041,2]
[377460171,1754416285977,-460.0,0.0003041,2]
[377460172,1754416285987,-472.66323559,0.0003041,2]
[377460173,1754416285996,-844.14,0.0003041,2]
[377460174,1754416286005,-1000.34,0.0003041,2]
[377460175,1754416286015,-2193.9,0.0003041,2]
[377460176,1754416286025,-466.38677929,0.0003041,2]
[377460177,1754416286035,-460.0,0.0003041,2]
[377460178,1754416286045,-519.7,0.0003041,2]
[377460179,1754416286055,-460.0,0.0003041,2]
[377460180,1754416286066,-397.66791388,0.0003041,2]
[377460181,1754416286077,-748.97,0.0003041,2]
[377460182,1754416286086,-460.0,0.0003041,2]
[377460183,1754416286095,-460.0,0.0003041,2]
[377460184,1754416286106,-3138.65,0.0003041,2]
[377460185,1754416286116,-489.33,0.0003041,2]
[377460186,1754416286125,-460.0,0.0003041,2]
[377460187,1754416286135,-460.0,0.0003041,2]
[377460188,1754416286144,-460.0,0.0003041,2]
[377460189,1754416286153,-460.0,0.0003041,2]
[377460190,1754416286162,-3180.74,0.0003041,2]
[377460191,1754416286172,-460.0,0.0003041,2]
[377460192,1754416286185,-1930.76,0.0003041,2]
[377460193,1754416286194,-2230.2,0.0003041,2]
[377460194,1754416286204,-460.0,0.0003041,2]
[377460195,1754416286213,-383.12478813,0.0003041,2]
[377460196,1754416286223,-460.0,0.0003041,2]
[377460197,1754416286232,-560.35,0.0003041,2]
[377460198,1754416286241,-727.87,0.0003041,2]
[377460199,1754416286250,-468.56722548,0.0003041,2]
[377460200,1754416286261,-1127.9,0.0003041,2]
[377460201,1754416286271,-460.0,0.0003041,2]
[377460202,1754416286280,-460.0,0.0003041,2]
[377460203,1754416286290,-460.0,0.0003041,2]
[377460204,1754416286299,-460.0,0.0003041,2]
[377460205,1754416286308,-460.0,0.0003041,2]
[377460206,1754416286318,-1550.17,0.0003041,2]
[377460207,1754416286327,-460.0,0.0003041,2]
[377460208,1754416286337,-460.0,0.0003041,2]
[377460209,1754416286348,-460.0,0.0003041,2]
[377460210,1754416286361,-569.87,0.0003041,2]
[377460211,1754416286370,-2106.63,0.0003041,2]
[377460212,1754416286380,-3854.83,0.0003041,2]
[377460213,1754416286390,-188.53450768,0.0003041,2]
[377460214,1754416286401,-714.24,0.0003041,2]
[377460215,1754416286410,-541.08,0.0003041,2]
[377460216,1754416286419,-415.0,0.00030411,14]
[377460217,1754416286430,-3000.0,0.00030412,5]
[377460218,1754416286439,-8167.7409586,0.00030426,2]
[377460219,1754416286449,-151.0,0.00030426,7]
[377460220,1754416286458,-151.0,0.00030426,7]
[377460221,1754416286467,-151.0,0.00030426,7]
[377460222,1754416286477,-151.0,0.00030426,7]
[377460223,1754416286486,-151.0,0.00030426,7]
[377460224,1754416286495,-151.0,0.00030426,7]
[377460225,1754416286504,-151.0,0.00030426,7]
[377460226,1754416286514,-151.0,0.00030426,7]
[377460227,1754416286523,-151.0,0.00030426,7]
[377460228,1754416286533,-151.0,0.00030426,7]
[377460229,1754416286542,-193.643404,0.00030426,7]
[377460230,1754416286551,-193.643404,0.00030426,7]
[377460231,1754416286561,-193.643404,0.00030426,7]
[377460232,1754416286571,-193.643404,0.00030426,7]
[377460233,1754416286580,-151.000002,0.00030426,7]
[377460234,1754416286589,-151.0,0.00030426,7]
[377460235,1754416286599,-151.0,0.00030426,7]
[377460236,1754416286610,-151.0,0.00030426,7]
[377460237,1754416286619,-151.0,0.00030426,7]
[377460238,1754416286628,-151.0,0.00030426,7]
[377460239,1754416286638,-152.621314,0.00030426,7]
[377460240,1754416286647,-151.0,0.00030426,7]
[377460241,1754416286656,-151.0,0.00030426,7]
[377460242,1754416286666,-151.0,0.00030426,7]
[377460243,1754416286675,-151.0,0.00030426,7]
[377460244,1754416286684,-151.0,0.00030426,7]
[377460245,1754416286693,-151.0,0.00030426,7]
[377460246,1754416286703,-151.0,0.00030426,7]
[377460247,1754416286714,-151.0,0.00030426,7]
[377460248,1754416286731,-151.0,0.00030426,7]
[377460249,1754416286741,-151.0,0.00030426,7]
[377460250,1754416286751,-151.0,0.00030426,7]
[377460251,1754416286760,-151.0,0.00030426,7]
[377460252,1754416286769,-151.0,0.00030426,7]
[377460253,1754416286779,-179.994825,0.00030426,7]
[377460254,1754416286788,-173.207897,0.00030426,7]
[377460255,1754416286798,-151.0,0.00030426,7]
[377460256,1754416286807,-151.0,0.00030426,7]
[377460257,1754416286816,-151.0,0.00030426,7]
[377460258,1754416286826,-151.0,0.00030426,7]
[377460259,1754416286835,-151.0,0.00030426,7]
[377460260,1754416286845,-151.0,0.00030426,7]
[377460261,1754416286855,-325.0,0.0003043,7]
[377460262,1754416286864,-325.0,0.0003043,7]
[377460263,1754416286874,-152.0,0.00030431,7]
[377460264,1754416286883,-152.0,0.00030431,7]
[377460265,1754416286893,-1758.0,0.00030431,7]
[377460266,1754416286902,-152.0,0.00030431,7]
[377460267,1754416286911,-1758.0,0.00030431,7]
[377460268,1754416286920,-152.0,0.00030431,7]
[377460269,1754416286929,-1758.0,0.00030431,7]
[377460270,1754416286939,-152.0,0.00030431,7]
[377460271,1754416286947,-1758.0,0.00030431,7]
[377460272,1754416286956,-152.0,0.00030431,7]
[377460273,1754416286965,-1758.0,0.00030431,7]
[377460274,1754416286974,-152.0,0.00030431,7]
[377460275,1754416286983,-1758.0,0.00030431,7]
[377460276,1754416286993,-1758.0,0.00030431,7]
[377460277,1754416287002,-152.0,0.00030431,7]
[377460278,1754416287011,-152.0,0.00030431,7]
[377460279,1754416287020,-1758.0,0.00030431,7]
[377460280,1754416287029,-1758.0,0.00030431,7]
[377460281,1754416287039,-152.0,0.00030431,7]
[377460282,1754416287048,-1758.0,0.00030431,7]
[377460283,1754416287057,-152.0,0.00030431,7]
[377460284,1754416287066,-262.82781049,0.00030431,7]
[377460285,1754416287076,-152.0,0.00030431,7]
[377460286,1754416287085,-152.0,0.00030431,7]
[377460287,1754416287094,-325.0,0.00030431,7]
[377460288,1754416287104,-333.10662728,0.00030431,7]
[377460289,1754416287114,-152.0,0.00030431,7]
[377460290,1754416287123,-152.0,0.00030431,7]
[377460291,1754416287132,-152.0,0.00030431,7]
[377460292,1754416287143,-152.0,0.00030431,7]
[377460293,1754416287152,-154.39389526,0.00030431,7]
[377460294,1754416287168,-151.0,0.00030431,7]
[377460295,1754416287178,-181.88151,0.00030431,7]
[377460296,1754416287188,-181.88151,0.00030431,7]
[377460297,1754416287197,-175.0,0.00030431,7]
[377460298,1754416287207,-175.0,0.00030431,7]
[377460299,1754416287216,-249.450475,0.00030431,7]
[377460300,1754416287226,-249.450475,0.00030431,7]
[377460301,1754416287235,-151.0,0.00030435,7]
[377460302,1754416287245,-151.0,0.00030435,7]
[377460303,1754416287254,-151.0,0.00030435,7]
[377460304,1754416287263,-151.0,0.00030435,7]
[377460305,1754416287272,-151.0,0.00030435,7]
[377460306,1754416287282,-151.0,0.00030435,7]
[377460307,1754416287291,-151.000001,0.00030435,7]
[377460308,1754416287300,-151.0,0.00030435,7]
[377460309,1754416287309,-151.0,0.00030435,7]
[377460310,1754416287319,-151.0,0.00030435,7]
[377460311,1754416287328,-660.0,0.0003044,2]
[377460312,1754416287338,-151.0,0.00030449,7]
[377460313,1754416287348,-151.0,0.00030449,7]
[377460314,1754416287360,-151.0,0.00030449,7]
[377460315,1754416287370,-151.0,0.00030449,7]
[377460316,1754416287380,-151.0,0.00030449,7]
[377460317,1754416287389,-199.843786,0.00030449,7]
[377460318,1754416287400,-151.0,0.00030449,7]
[377460319,1754416287410,-151.0,0.00030449,7]
[377460320,1754416287419,-222.31398,0.00030449,7]
[377460321,1754416287429,-222.31398,0.00030449,7]
[377460322,1754416287438,-222.31398,0.00030449,7]
[377460323,1754416287448,-222.31398,0.00030449,7]
[377460324,1754416287457,-151.0,0.00030449,7]
[377460325,1754416287467,-151.0,0.00030449,7]
[377460326,1754416287477,-407.26373,0.00030449,7]
[377460327,1754416287593,-407.26373,0.00030449,7]
[377460328,1754416287604,-407.26373,0.00030449,7]
[377460329,1754416287614,-407.26373,0.00030449,7]
[377460330,1754416287623,-151.0,0.00030449,7]
[377460331,1754416287633,-151.0,0.00030449,7]
[377460332,1754416287642,-151.0,0.00030449,7]
[377460333,1754416287651,-151.0,0.00030449,7]
[377460334,1754416287662,-214.888906,0.00030449,7]
[377460335,1754416287672,-151.0,0.00030449,7]
[377460336,1754416287681,-151.0,0.00030449,7]
[377460337,1754416287691,-151.0,0.00030449,7]
[377460338,1754416287701,-151.0,0.00030449,7]
[377460339,1754416287710,-151.0,0.00030449,7]
[377460340,1754416287719,-181.88151,0.00030449,7]
[377460341,1754416287729,-181.88151,0.00030449,7]
[377460342,1754416287739,-181.88151,0.00030449,7]
[377460343,1754416287749,-181.88151,0.00030449,7]
[377460344,1754416287758,-175.0,0.00030449,7]
[377460345,1754416287767,-175.0,0.00030449,7]
[377460346,1754416287777,-175.0,0.00030449,7]
[377460347,1754416287786,-175.0,0.00030449,7]
[377460348,1754416287795,-249.450475,0.00030449,7]
[377460349,1754416287805,-249.450475,0.00030449,7]
[377460350,1754416287814,-249.450475,0.00030449,7]
[377460351,1754416287823,-249.450475,0.00030449,7]
[377460352,1754416287833,-1712.627473,0.00030449,7]
[377460353,1754416287843,-1712.627473,0.00030449,7]
[377460354,1754416287853,-1712.627473,0.00030449,7]
[377460355,1754416287862,-1712.627473,0.00030449,7]
[377460356,1754416287871,-198.95,0.00030456,15]
[377460357,1754416287881,-398.74147964,0.00030463,30]
[377460358,1754416287892,-157.06354814,0.00030466,2]
[377460359,1754416287902,-1135.172903,0.0003048,5]
[377460360,1754416287911,-151.86,0.00030486,15]
[377460361,1754416287920,-500.0,0.00030492,20]
[377460362,1754416287930,-153.24,0.00030496,15]
[377460363,1754416287942,-1064327.58388906,0.00030496,20]
[377460364,1754416287951,-800.58187722,0.00030496,2]
[377460365,1754416287960,-1045931.45931211,0.00030496,20]
[377460366,1754416287971,-1800.17264384,0.00030496,2]
[377460367,1754416287980,-516.88757006,0.00030496,10]
[377460368,1754416287990,-150.0,0.00030496,2]
[377460369,1754416287999,-150.0,0.00030496,10]
[377460370,1754416288008,-200.0,0.00030497,120]
[377460371,1754416288017,-156.0,0.000305,3]
[377460372,1754416288027,-8659.58662871,0.000305,2]
[377460373,1754416288036,-1298.22,0.000305,2]
[377460374,1754416288045,-267.498216,0.000305,20]
[377460375,1754416288054,-1989.482032,0.000305,5]
[377460376,1754416288063,-1000.0,0.000305,5]
[377460377,1754416288074,-1500.0,0.000305,3]
[377460378,1754416288083,-645.8289,0.000305,2]
[377460379,1754416288093,-500.0,0.00030506,7]
[377460380,1754416288102,-500.0,0.00030506,30]
[377460381,1754416288113,-500.0,0.00030506,30]
[377460382,1754416288122,-500.0,0.00030506,15]
[377460383,1754416288131,-500.0,0.00030506,10]
[377460384,1754416288141,-500.0,0.00030506,15]
[377460385,1754416288150,-500.0,0.00030506,30]
[377460386,1754416288159,-500.0,0.00030506,2]
[377460387,1754416288168,-500.0,0.00030506,2]
[377460388,1754416288179,-500.0,0.00030506,10]
[377460389,1754416288189,-500.0,0.00030506,7]
[377460390,1754416288198,-500.0,0.00030506,30]
[377460391,1754416288207,-500.0,0.00030506,10]
[377460392,1754416288217,-500.0,0.00030506,30]
[377460393,1754416288226,-200.02,0.00030506,7]
[377460394,1754416288235,-2000.0,0.00030517,7]
[377460395,1754416288245,-2000.0,0.00030517,7]
[377460396,1754416288255,-2000.0,0.00030517,7]
[377460397,1754416288264,-2000.0,0.00030517,7]
[377460398,1754416288273,-450.416,0.00030517,7]
[377460399,1754416288282,-2000.0,0.00030517,7]
[377460400,1754416288292,-494.7,0.00030517,7]
[377460401,1754416288301,-267.498216,0.00030517,7]
[377460402,1754416288310,-650.2,0.00030518,30]
[377460403,1754416288319,-896.9,0.00030521,30]
[377460404,1754416288329,-267.498216,0.00030523,20]
[377460405,1754416288339,-5344.54,0.00030524,30]
[377460406,1754416288350,-4300.0,0.00030529,30]
[377460407,1754416288362,-267.498216,0.00030546,20]
[377460408,1754416288372,-152.88,0.0003055,15]
[377460409,1754416288382,-4854.0,0.00030554,7]
[377460410,1754416288392,-986.72,0.00030555,30]
[377460411,1754416288402,-198.95,0.00030556,15]
[377460412,1754416288412,-517.0,0.00030559,120]
[377460413,1754416288422,-155.0,0.0003056,30]
[377460414,1754416288432,-156.531808,0.00030569,20]
[377460415,1754416288442,-267.498216,0.00030569,20]
[377460416,1754416288451,-151.86,0.00030586,15]
[377460417,1754416288460,-156.531808,0.00030592,20]
[377460418,1754416288470,-267.498216,0.00030592,20]
[377460419,1754416288479,-153.24,0.00030596,15]
[377460420,1754416288489,-645.8289,0.000306,2]
[377460421,1754416288498,-153.1,0.0003065,15]
[377460422,1754416288507,-198.95,0.00030656,15]
[377460423,1754416288517,-200.0,0.00030658,120]
[377460424,1754416288528,-3500.0,0.0003066,5]